bitfinex/quotes_ETHUSD_20240530
["timestamp","ask_amount","ask_price","bid_price","bid_amount"]
[1717104831862,5.0,3754.6,3754.1,0.05326498]
[1717104832063,5.0,3754.6,3754.2,1.7950039]
[1717104832306,2.5691232,3754.5,3754.1,0.05326498]
[1717104832509,2.5691232,3754.5,3754.0,2.66381]
[1717104832665,0.0815232,3754.5,3754.0,3.98594922]
[1717104833792,5.0815232,3754.5,3754.0,3.98594922]
[1717104834201,5.0815232,3754.5,3753.6,2.66404]
[1717104834512,5.0815232,3754.5,3753.2,5.14113]
[1717104834666,0.55,3754.4,3753.2,5.14113]
[1717104834865,0.55,3754.4,3753.5,1.32213922]
[1717104834866,2.4876,3754.3,3753.5,1.32213922]
[1717104835210,2.66368,3754.2,3753.5,3.98630922]
[1717104835806,5.0,3753.7,3753.5,3.98630922]
[1717104836006,5.0,3753.7,3753.6,1.42863092]
[1717104836207,5.0,3753.7,3753.6,2.75077014]
[1717104836719,5.0,3754.1,3753.6,2.75077014]
[1717104841941,2.2861,3754.0,3753.6,2.75077014]
[1717104842928,2.2861,3754.0,3753.6,1.42863092]
[1717104843824,7.2861,3754.0,3753.6,1.42863092]
[1717104844611,5.0,3754.0,3753.6,3.69603092]
[1717104844869,5.0,3754.0,3753.4,7.3]
[1717104845164,5.0,3754.0,3753.4,8.62213922]
[1717104846629,2.66395,3753.9,3753.4,7.3]
[1717104846815,0.55,3753.8,3753.4,7.3]
[1717104847252,2.66411,3753.6,3753.4,7.3]
[1717104848833,7.66411,3753.6,3753.4,7.3]
[1717104849854,5.0,3753.5,3753.4,7.3]
[1717104850711,2.66431,3753.4,3752.7,7.3]
[1717104851017,2.66431,3753.4,3752.8,3.96774685]
[1717104851619,2.66431,3753.4,3752.8,1.32213922]
[1717104852721,2.66447,3753.1,3752.5,3.0]
[1717104852921,2.66447,3753.1,3752.4,5.2818]
[1717104853221,2.66491,3752.5,3752.0,12.21]
[1717104853421,2.66491,3752.5,3752.1,1.951]
[1717104853679,2.66491,3752.5,3751.6,1.32213922]
[1717104854744,2.66491,3752.5,3751.6,36.32213922]
[1717104855571,2.66511,3752.2,3751.6,1.32213922]
[1717104856277,2.66511,3752.2,3751.6,4.32213922]
[1717104857369,2.66511,3752.2,3751.7,2.64560763]
[1717104857556,2.66511,3752.2,3751.7,3.96774685]
[1717104857786,7.66511,3752.2,3751.7,2.64560763]
[1717104857957,7.66511,3752.2,3751.6,3.0]
[1717104858272,7.66511,3752.2,3751.5,7.3]
[1717104858624,2.66577,3751.3,3750.5,5.08209]
[1717104858827,2.66577,3751.3,3750.6,1.83034822]
[1717104859490,2.66577,3751.3,3750.6,0.508209]
[1717104860184,2.66577,3751.3,3750.6,3.508209]
[1717104860543,2.66577,3751.3,3750.6,0.508209]
[1717104860871,0.55,3751.2,3750.6,0.508209]
[1717104861371,2.66589,3751.1,3750.1,5.66655]
[1717104861594,2.66589,3751.1,3750.2,4.32213922]
[1717104861741,5.0,3750.7,3750.2,4.32213922]
[1717104863636,2.4556,3750.7,3749.8,35.0]
[1717104863861,0.55,3750.6,3749.9,2.64560763]
[1717104864806,5.55,3750.6,3749.9,2.64560763]
[1717104864942,5.55,3750.6,3750.0,3.0]
[1717104865140,5.0,3750.6,3750.1,1.28633833]
[1717104865750,5.0,3750.3,3750.2,1.32213922]
[1717104867716,5.0,3750.4,3750.2,1.32213922]
[1717104868105,5.0,3750.4,3750.2,4.04195282]
[1717104868263,5.0,3750.4,3750.3,0.76343912]
[1717104868460,5.0,3750.4,3750.3,5.08557834]
[1717104868764,5.03907,3751.6,3750.6,2.66623]
[1717104868982,5.03907,3751.6,3750.7,1.32213922]
[1717104869618,0.55,3751.5,3750.7,1.32213922]
[1717104869910,0.55,3751.5,3750.8,0.39883692]
[1717104871802,5.0,3751.1,3750.8,0.39883692]
[1717104872368,5.0,3751.1,3750.9,35.0]
[1717104876313,5.0,3751.1,3750.8,0.39883692]
[1717104876714,5.0,3751.1,3750.8,35.39883692]
[1717104876911,5.0,3751.1,3750.9,2.64560763]
[1717104877694,5.0,3751.4,3750.9,2.64560763]
[1717104878781,5.0,3751.1,3750.9,2.64560763]
[1717104879921,5.0,3751.1,3750.9,3.96774685]
[1717104881720,5.0,3751.3,3750.9,1.32213922]
[1717104881921,5.0,3751.3,3750.9,36.32213922]
[1717104882152,0.55,3751.2,3750.4,7.3]
[1717104882301,2.3777,3751.1,3750.4,7.3]
[1717104882482,0.55,3751.0,3750.4,7.3]
[1717104882884,2.66612,3750.8,3750.4,7.3]
[1717104883231,2.66612,3750.8,3750.0,47.21]
[1717104883400,2.66612,3750.8,3750.1,5.64560763]
[1717104883797,5.0,3750.6,3750.1,5.64560763]
[1717104884206,5.0,3750.6,3750.1,2.64560763]
[1717104884635,5.0,3750.6,3750.1,37.64560763]
[1717104885735,5.0,3750.3,3750.1,37.64560763]
[1717104886236,5.0,3750.3,3750.1,2.64560763]
[1717104886808,5.0,3750.5,3750.1,2.64560763]
[1717104888797,7.66612,3750.8,3750.1,2.64560763]
[1717104889009,7.66612,3750.8,3750.0,1.32213922]
[1717104891219,2.66631,3750.6,3750.0,1.32213922]
[1717104895044,5.0,3750.3,3750.0,1.32213922]
[1717104895867,5.0,3750.2,3750.0,1.32213922]
[1717104896442,5.0,3750.2,3749.9,7.3]
[1717104896797,5.0,3750.2,3749.9,8.62213922]
[1717104897727,5.0,3750.3,3749.9,8.62213922]
[1717104898070,5.0,3750.3,3749.7,3.0]
[1717104898233,5.0,3750.3,3749.8,1.32213922]
[1717104898429,2.66656,3750.2,3749.7,3.0]
[1717104898659,2.66656,3750.2,3749.7,4.32213922]
[1717104898861,2.66656,3750.2,3749.7,6.96774685]
[1717104901756,7.66656,3750.2,3749.7,6.96774685]
[1717104902662,7.66656,3750.2,3749.7,1.32213922]
[1717104903674,5.0,3749.9,3749.7,1.32213922]
[1717104904767,5.0,3749.8,3749.7,1.32213922]
[1717104909769,5.0,3749.9,3749.7,1.32213922]
[1717104913794,5.0,3749.8,3749.7,1.32213922]
[1717104919390,5.0,3749.8,3749.7,2.21413922]
[1717104921325,5.0,3749.8,3749.7,1.32213922]
[1717104931449,5.07037438,3749.8,3749.7,1.32213922]
[1717104956399,5.07037438,3749.8,3749.7,36.32213922]
[1717104956550,5.0,3749.8,3749.7,36.32213922]
[1717104959089,5.0,3749.8,3749.7,1.32213922]
[1717104959455,5.06926529,3749.8,3749.7,1.32213922]
[1717104959786,5.0,3749.8,3749.7,1.32213922]
[1717104961166,5.06921298,3749.8,3749.7,1.32213922]
[1717104962167,5.0,3749.8,3749.7,1.32213922]
[1717104969985,7.4843,3749.8,3749.7,1.32213922]
[1717104970187,7.55356291,3749.8,3749.7,1.32213922]
[1717104970696,7.4843,3749.8,3749.7,1.32213922]
[1717104980120,7.4843,3749.8,3749.3,1.30970572]
[1717104980315,7.4843,3749.8,3749.4,1.32213922]
[1717104980647,0.06952102,3749.7,3749.4,1.32213922]
[1717104981044,2.4843,3749.8,3749.4,1.32213922]
[1717104981845,5.0,3749.5,3749.4,1.32213922]
[1717104984865,5.06938271,3749.5,3749.4,1.32213922]
[1717104985258,5.0,3749.5,3749.4,1.32213922]
[1717104985619,5.06931824,3749.5,3749.4,1.32213922]
[1717104986320,5.06931824,3749.5,3749.4,3.96774685]
[1717104986560,5.0,3749.5,3749.4,3.96774685]
[1717104988263,5.0693766,3749.5,3749.4,1.32213922]
[1717104988866,5.0,3749.5,3749.4,1.32213922]
[1717104992156,5.06927645,3749.5,3749.4,1.32213922]
[1717104992364,5.06927645,3749.5,3749.4,36.32213922]
[1717104992667,5.0,3749.5,3749.4,36.32213922]
[1717104992870,5.0,3749.5,3749.4,38.96774685]
[1717105006662,5.0,3749.5,3749.4,39.85974685]
[1717105015129,3.0,3751.7,3749.4,39.85974685]
[1717105015130,5.0,3749.7,3749.5,8.00106]
[1717105015292,2.3692,3751.0,3750.9,2.66602]
[1717105015489,0.892,3752.2,3751.7,2.66544]
[1717105015692,2.3692,3752.1,3751.7,2.66544]
[1717105022965,0.06423279,3752.0,3751.7,2.66544]
[1717105023623,2.3692,3752.1,3751.7,2.66544]
[1717105024836,0.06416874,3752.0,3751.7,2.66544]
[1717105028476,2.3692,3752.1,3751.7,2.66544]
[1717105028786,0.06419161,3752.0,3751.7,2.66544]
[1717105029845,2.3692,3752.1,3751.7,2.66544]
[1717105031362,0.892,3752.5,3752.1,2.66514]
[1717105031586,0.55,3752.4,3752.1,2.66514]
[1717105031885,2.4126,3752.3,3752.1,2.66514]
[1717105032387,0.06429631,3752.2,3752.1,2.66514]
[1717105032739,2.4126,3752.3,3752.1,2.66514]
[1717105032935,0.06429631,3752.2,3752.1,2.66514]
[1717105033187,2.4126,3752.3,3752.1,2.66514]
[1717105033494,0.06429631,3752.2,3752.1,2.66514]
[1717105033839,2.4126,3752.3,3752.1,2.66514]
[1717105034176,0.06430878,3752.2,3752.1,2.66514]
[1717105034986,2.4126,3752.3,3752.1,2.66514]
[1717105035283,0.06430878,3752.2,3752.1,2.66514]
[1717105036076,2.4126,3752.3,3752.1,2.66514]
[1717105036267,0.06430878,3752.2,3752.1,2.66514]
[1717105036683,2.4126,3752.3,3752.1,2.66514]
[1717105036855,0.06433164,3752.2,3752.1,2.66514]
[1717105037254,2.4126,3752.3,3752.1,2.66514]
[1717105037457,0.06433164,3752.2,3752.1,2.66514]
[1717105037778,2.4126,3752.3,3752.1,2.66514]
[1717105037984,0.06435034,3752.2,3752.1,2.66514]
[1717105038181,2.4126,3752.3,3752.1,2.66514]
[1717105038343,0.06435034,3752.2,3752.1,2.66514]
[1717105038544,2.4126,3752.3,3752.1,2.66514]
[1717105038744,0.06218001,3752.2,3752.1,2.66514]
[1717105039043,2.4126,3752.3,3752.1,2.66514]
[1717105039272,0.06217793,3752.2,3752.1,2.66514]
[1717105039659,2.4126,3752.3,3752.1,2.66514]
[1717105039893,0.06217793,3752.2,3752.1,2.66514]
[1717105040575,2.4126,3752.3,3752.1,2.66514]
[1717105040780,0.06215381,3752.2,3752.1,1.58865322]
[1717105040949,2.2945,3752.9,3752.8,2.66467]
[1717105041150,2.66403,3753.8,3753.1,2.66443]
[1717105041151,2.4023,3753.7,3753.1,2.66443]
[1717105041484,0.892,3753.6,3752.5,2.66487]
[1717105041643,2.4023,3753.7,3752.6,2.21413922]
[1717105041845,2.4023,3753.7,3753.3,2.66425]
[1717105042199,2.7450532,3754.5,3753.6,2.6641]
[1717105042200,2.4023,3754.1,3753.6,2.6641]
[1717105042398,0.0815232,3754.5,3753.6,2.6641]
[1717105042715,0.0815232,3754.5,3753.9,2.66387]
[1717105042716,0.892,3754.3,3753.9,2.66387]
[1717105043437,0.0815232,3754.5,3753.9,2.66387]
[1717105043754,0.0815232,3754.5,3754.2,2.66363]
[1717105043995,0.892,3754.4,3754.2,2.66363]
[1717105044774,0.0815232,3754.5,3754.2,2.66363]
[1717105044954,0.9735232,3754.5,3754.2,2.66363]
[1717105045154,0.0815232,3754.5,3754.2,2.66363]
[1717105046560,0.0815232,3754.5,3754.4,2.66354]
[1717105048341,0.0815232,3754.5,3754.4,3.55554]
[1717105048497,0.0815232,3754.5,3754.4,2.66354]
[1717105049518,0.0815232,3754.5,3754.4,3.98567922]
[1717105051658,0.0815232,3754.5,3754.4,45.15697922]
[1717105051832,0.0815232,3754.5,3754.4,46.08775455]
[1717105052763,0.0815232,3754.5,3754.4,45.19575455]
[1717105052972,0.0815232,3754.5,3754.4,46.08775455]
[1717105053706,0.0815232,3754.5,3754.4,45.19575455]
[1717105053906,0.0815232,3754.5,3754.4,46.08775455]
[1717105054731,0.0815232,3754.5,3754.4,11.08775455]
[1717105055255,0.0815232,3754.5,3754.4,46.08775455]
[1717105056022,0.0815232,3754.5,3754.4,45.19575455]
[1717105056242,0.0815232,3754.5,3754.4,46.08775455]
[1717105057266,0.0815232,3754.5,3754.4,48.75129455]
[1717105057468,0.0815232,3754.5,3754.4,47.85929455]
[1717105057671,0.0815232,3754.5,3754.4,48.75129455]
[1717105058569,0.0815232,3754.5,3754.4,46.08775455]
[1717105059546,0.0815232,3754.5,3754.4,45.19575455]
[1717105059850,0.0815232,3754.5,3754.4,46.08775455]
[1717105060550,0.0815232,3754.5,3754.4,45.19575455]
[1717105060879,0.0815232,3754.5,3754.4,46.08775455]
[1717105062476,0.0815232,3754.5,3754.4,13.75129455]
[1717105062875,0.0815232,3754.5,3754.4,48.75129455]
[1717105063074,2.4854,3755.9,3755.3,2.66283]
[1717105063281,2.4854,3755.9,3755.4,1.58842222]
[1717105063464,0.05848339,3755.8,3755.4,1.58842222]
[1717105063665,2.4854,3755.9,3755.4,1.58842222]
[1717105067890,2.4854,3755.9,3755.5,0.892]
[1717105068084,2.4854,3755.9,3755.5,2.21413922]
[1717105069060,4.93986,3756.2,3755.5,2.21413922]
[1717105069245,4.93986,3756.2,3755.5,2.72846444]
[1717105069581,0.05853978,3755.9,3755.5,2.72846444]
[1717105071291,0.05853978,3755.9,3755.6,1.32213922]
[1717105088159,0.05853978,3755.9,3755.3,2.66283]
[1717105088447,0.05853978,3755.9,3755.4,1.32213922]
[1717105088448,4.91748,3755.8,3755.4,1.32213922]
[1717105088828,0.0585224,3755.7,3755.4,1.32213922]
[1717105089162,4.91748,3755.8,3755.4,1.32213922]
[1717105089660,0.0585224,3755.7,3755.4,1.32213922]
[1717105089953,0.05847845,3755.6,3755.4,1.32213922]
[1717105090151,4.91748,3755.8,3755.4,1.32213922]
[1717105090356,0.0585224,3755.7,3755.4,1.32213922]
[1717105090555,4.91748,3755.8,3755.4,1.32213922]
[1717105090857,0.0585224,3755.7,3755.4,1.32213922]
[1717105091057,4.91748,3755.8,3755.4,1.32213922]
[1717105091226,0.05847845,3755.6,3755.4,1.32213922]
[1717105091433,4.91748,3755.8,3755.4,1.32213922]
[1717105091632,0.05804449,3755.5,3755.4,1.32213922]
[1717105091831,4.91748,3755.8,3755.4,1.32213922]
[1717105092046,0.05804449,3755.5,3755.4,1.32213922]
[1717105092260,4.91748,3755.8,3755.4,1.32213922]
[1717105092422,0.05804449,3755.5,3755.4,1.32213922]
[1717105092623,0.2111528,3756.0,3755.4,3.97385314]
[1717105092952,0.2111528,3756.0,3755.6,0.892]
[1717105093114,0.2111528,3756.0,3755.7,1.32213922]
[1717105093316,0.2111528,3756.0,3755.8,0.892]
[1717105093517,0.2111528,3756.0,3755.9,1.32213922]
[1717105096343,0.2111528,3756.0,3755.9,1.84355314]
[1717105100410,0.2111528,3756.0,3755.9,1.32213922]
[1717105100682,0.2111528,3756.0,3755.6,3.0]
[1717105100843,0.2111528,3756.0,3755.5,3.55475]
[1717105100844,0.26768243,3756.0,3755.7,1.32213922]
[1717105105301,0.2111528,3756.0,3755.7,1.32213922]
[1717105108166,0.05651887,3755.9,3755.7,1.32213922]
[1717105108366,0.05651887,3755.9,3755.7,2.07499953]
[1717105108714,0.2111528,3756.0,3755.7,2.07499953]
[1717105111404,0.2111528,3756.0,3755.7,1.32213922]
[1717105113807,2.8735728,3756.0,3755.4,0.22141392]
[1717105114016,2.8735728,3756.0,3755.5,1.32213922]
[1717105114318,0.0555648,3755.9,3755.5,1.32213922]
[1717105114524,2.8735728,3756.0,3755.5,2.37072953]
[1717105114677,0.05552085,3755.8,3755.5,2.37072953]
[1717105115112,2.8735728,3756.0,3755.5,2.37072953]
[1717105115312,0.05547689,3755.7,3755.5,2.37072953]
[1717105115627,0.05543293,3755.6,3755.5,2.37072953]
[1717105116213,2.8735728,3756.0,3755.5,2.37072953]
[1717105116688,0.0555648,3755.9,3755.5,2.37072953]
[1717105119414,2.8735728,3756.0,3755.5,2.37072953]
[1717105120326,2.8735728,3756.0,3755.6,0.88715435]
[1717105120626,2.8735728,3756.0,3755.6,2.20929357]
[1717105122440,0.05549439,3755.9,3755.6,2.20929357]
[1717105123139,2.8735728,3756.0,3755.6,2.20929357]
[1717105123995,0.05539332,3755.9,3755.6,2.20929357]
[1717105124791,2.8735728,3756.0,3755.6,2.20929357]
[1717105125806,5.2809728,3756.0,3755.6,2.20929357]
[1717105126146,0.0553788,3755.9,3755.6,2.20929357]
[1717105126612,2.66259,3755.8,3753.1,2.29284588]
[1717105126814,2.66259,3755.8,3755.0,2.21413922]
[1717105127062,2.66259,3755.8,3755.0,4.32213922]
[1717105127603,2.66274,3755.6,3755.0,4.32213922]
[1717105127837,2.4627,3755.5,3755.0,2.21413922]
[1717105128070,2.4627,3755.5,3755.1,1.21772992]
[1717105128200,2.4627,3755.5,3755.2,1.32213922]
[1717105129647,2.66283,3755.4,3755.2,1.32213922]
[1717105133251,2.66283,3755.4,3754.9,7.3]
[1717105133548,2.66304,3755.1,3754.9,8.62213922]
[1717105133752,2.66304,3755.1,3754.9,1.32213922]
[1717105138455,2.66304,3755.1,3754.4,3.892]
[1717105138456,2.42706123,3755.0,3754.4,3.0]
[1717105138655,0.05476123,3755.0,3754.5,2.35213922]
[1717105138858,2.6632,3754.9,3754.5,2.35213922]
[1717105139158,5.0359,3754.9,3754.5,2.35213922]
[1717105141071,0.892,3754.6,3753.6,7.3]
[1717105141382,0.892,3754.6,3753.7,1.32213922]
[1717105141383,2.459,3754.5,3753.7,1.32213922]
[1717105141741,0.05441643,3754.4,3753.7,1.32213922]
[1717105142074,2.66366,3754.3,3753.7,2.49914314]
[1717105142576,0.05428487,3754.2,3753.7,2.49914314]
[1717105144542,2.66376,3754.1,3753.7,2.49914314]
[1717105146853,2.66376,3754.1,3753.7,1.32213922]
[1717105153654,0.05407651,3754.0,3753.7,1.32213922]
[1717105154380,2.54697651,3754.0,3753.7,1.32213922]
[1717105154690,2.4929,3754.0,3753.7,1.32213922]
[1717105156677,2.71793251,3753.9,3753.2,9.96433]
[1717105156859,2.71793251,3753.9,3753.3,1.32213922]
[1717105157180,2.6639,3753.9,3753.3,1.32213922]
[1717105157395,2.6639,3753.9,3752.9,10.3]
[1717105157682,2.6641,3753.7,3753.0,1.32213922]
[1717105158779,2.66425,3753.5,3753.0,1.32213922]
[1717105160369,2.66425,3753.5,3752.9,7.3]
[1717105160577,2.66425,3753.5,3752.9,8.62213922]
[1717105161386,2.66425,3753.5,3752.9,1.32213922]
[1717105164053,2.66432,3753.3,3752.9,1.32213922]
[1717105164491,0.05342739,3753.2,3752.9,1.32213922]
[1717105164788,2.66432,3753.3,3752.5,10.85688]
[1717105164991,2.66432,3753.3,3752.6,1.32213922]
[1717105165952,2.66453,3753.1,3752.5,7.3]
[1717105166157,2.4382,3753.0,3752.5,8.62213922]
[1717105167156,2.6646,3752.9,3752.5,8.62213922]
[1717105167394,2.6646,3752.9,3752.5,1.32213922]
[1717105170703,2.66481,3752.7,3752.0,7.3]
[1717105170878,2.6649,3752.5,3752.0,8.62213922]
[1717105171076,2.6649,3752.5,3752.0,11.26774685]
[1717105171490,2.6649,3752.5,3752.0,8.62213922]
[1717105173114,2.6649,3752.5,3752.0,1.32213922]
[1717105174829,3.5569,3752.5,3752.0,1.32213922]
[1717105178890,3.5569,3752.5,3751.5,7.3]
[1717105179199,2.66508,3752.3,3751.6,1.32213922]
[1717105179595,2.4974,3752.2,3751.6,1.32213922]
[1717105179785,2.4974,3752.2,3751.6,2.72986284]
[1717105179992,0.05305914,3752.1,3751.6,2.72986284]
[1717105180204,2.4974,3752.2,3751.6,2.72986284]
[1717105180713,2.66517,3752.1,3751.6,2.72986284]
[1717105184132,2.66517,3752.1,3751.6,1.40772362]
[1717105184301,2.66517,3752.1,3751.5,7.3]
[1717105184475,0.05081569,3752.0,3751.5,8.62213922]
[1717105184672,2.66517,3752.1,3751.5,1.32213922]
[1717105188739,3.55697,3752.4,3751.5,1.32213922]
[1717105188928,0.0507333,3752.0,3751.5,2.08122284]
[1717105189082,2.4629,3752.2,3751.5,2.08122284]
[1717105189283,2.66518,3752.1,3751.5,2.08122284]
[1717105190828,0.05004436,3752.0,3751.5,2.08122284]
[1717105198634,0.05004436,3752.0,3751.6,3.98764922]
[1717105198808,0.05004436,3752.0,3751.7,0.47467328]
[1717105199136,0.04997212,3751.9,3751.7,1.7968125]
[1717105199838,0.04995093,3751.8,3751.7,1.7968125]
[1717105200345,5.56509337,3755.4,3751.9,2.3873]
[1717105200346,2.66469,3752.8,3751.9,2.3873]
[1717105200546,3.55669,3752.8,3752.0,1.32213922]
[1717105200845,2.66469,3752.8,3752.0,3.98731922]
[1717105201052,2.66447,3753.1,3752.3,3.2793]
[1717105201208,0.266447,3753.0,3752.3,4.60143922]
[1717105201410,2.66447,3753.1,3752.3,4.60143922]
[1717105203417,2.66424,3753.5,3752.5,0.892]
[1717105203748,2.66424,3753.5,3752.6,3.98688922]
[1717105205016,3.55624,3753.5,3752.6,3.98688922]
[1717105205210,2.3171,3753.8,3752.9,2.66459]
[1717105205437,0.892,3753.6,3753.0,1.32213922]
[1717105206259,2.66418,3753.5,3752.7,2.4086]
[1717105206450,2.66418,3753.5,3752.8,1.32213922]
[1717105206832,0.0493021,3753.4,3752.8,1.32213922]
[1717105211329,0.0493021,3753.4,3752.8,2.12355703]
[1717105215686,2.2715,3753.3,3752.8,1.32213922]
[1717105215977,0.04902895,3753.2,3752.8,1.32213922]
[1717105216299,2.2715,3753.3,3752.8,1.32213922]
[1717105216446,0.04898493,3753.1,3752.5,2.66482]
[1717105216653,0.04902895,3753.2,3752.6,2.55300122]
[1717105216948,0.0489657,3753.1,3752.6,1.32213922]
[1717105217138,2.3243,3753.4,3752.6,1.32213922]
[1717105217339,0.04892168,3753.0,3752.6,1.32213922]
[1717105217559,2.3243,3753.4,3752.6,1.32213922]
[1717105217751,0.04887766,3752.9,3752.6,1.32213922]
[1717105217950,2.3243,3753.4,3752.7,1.45227592]
[1717105218181,0.04883364,3752.8,3752.6,1.32213922]
[1717105218388,2.3243,3753.4,3752.6,1.32213922]
[1717105218887,3.2163,3753.4,3752.6,1.32213922]
[1717105220443,2.66434,3753.3,3752.6,1.32213922]
[1717105220885,0.04892831,3753.2,3752.6,1.32213922]
[1717105222086,0.04892831,3753.2,3752.6,2.77441514]
[1717105222265,0.04892831,3753.2,3752.7,2.66469]
[1717105222439,3.55617,3753.6,3752.8,1.32213922]
[1717105222651,0.04884266,3753.1,3752.8,1.32213922]
[1717105222854,3.55617,3753.6,3752.8,1.32213922]
[1717105223096,0.04897197,3753.0,3752.8,1.32213922]
[1717105223268,3.55617,3753.6,3752.8,1.32213922]
[1717105223764,0.0490213,3753.5,3752.8,1.32213922]
[1717105231467,2.66428,3753.4,3752.8,1.32213922]
[1717105231782,0.07482391,3753.3,3752.8,1.32213922]
[1717105232901,2.306,3753.2,3752.8,1.32213922]
[1717105233066,0.07482391,3753.3,3752.8,1.32213922]
[1717105233262,0.07473734,3753.1,3752.8,1.32213922]
[1717105233572,0.07468364,3753.0,3752.9,2.481]
[1717105233973,2.66428,3753.4,3752.9,2.481]
[1717105234303,0.07468364,3753.0,3752.9,2.481]
[1717105234499,2.66428,3753.4,3752.9,2.481]
[1717105235028,0.07481351,3753.3,3752.9,2.481]
[1717105246390,0.07481351,3753.3,3753.0,3.98661922]
[1717105246590,2.66403,3753.8,3753.1,2.3272]
[1717105246827,2.66403,3753.8,3753.2,1.32213922]
[1717105247018,0.07501977,3753.7,3753.2,1.32213922]
[1717105249846,0.07501977,3753.7,3753.2,2.21413922]
[1717105250143,0.07501977,3753.7,3753.3,0.72058192]
[1717105250301,2.66403,3753.8,3753.3,2.04272114]
[1717105250505,0.07508853,3753.7,3753.3,2.04272114]
[1717105250705,2.66403,3753.8,3753.3,2.04272114]
[1717105250900,0.07508853,3753.7,3753.3,2.04272114]
[1717105251145,2.66403,3753.8,3753.4,0.52619211]
[1717105251306,0.07523848,3753.7,3753.4,0.52619211]
[1717105251506,2.66403,3753.8,3753.4,0.52619211]
[1717105251708,0.07523848,3753.7,3753.4,0.52619211]
[1717105252043,2.66403,3753.8,3753.4,0.52619211]
[1717105252224,0.07504526,3753.6,3753.4,0.52619211]
[1717105252430,2.66403,3753.8,3753.5,0.34609132]
[1717105252619,0.07515193,3753.5,3753.4,0.52619211]
[1717105252823,2.66403,3753.8,3753.4,0.52619211]
[1717105253309,0.07508853,3753.7,3753.4,0.52619211]
[1717105253511,2.66403,3753.8,3753.4,0.52619211]
[1717105253825,0.07508853,3753.7,3753.4,0.52619211]
[1717105254152,2.66403,3753.8,3753.4,0.52619211]
[1717105254514,0.0753446,3753.7,3753.4,0.52619211]
[1717105254860,2.66403,3753.8,3753.4,0.52619211]
[1717105255028,0.07515138,3753.6,3753.4,0.52619211]
[1717105255358,0.07419204,3753.5,3753.4,0.52619211]
[1717105255559,2.66403,3753.8,3753.4,0.52619211]
[1717105255772,0.07442854,3753.7,3753.4,0.52619211]
[1717105256248,2.58845854,3753.8,3753.4,0.52619211]
[1717105256450,0.07175437,3753.6,3753.4,0.52619211]
[1717105256657,2.58845854,3753.8,3753.4,0.52619211]
[1717105257172,0.07179764,3753.7,3753.4,0.52619211]
[1717105257636,2.58845854,3753.8,3753.4,0.52619211]
[1717105257822,3.55575,3754.1,3753.4,0.52619211]
[1717105258023,0.07194759,3753.7,3753.4,0.52619211]
[1717105258335,2.66375,3754.1,3753.6,2.4642]
[1717105258537,3.55575,3754.1,3753.6,2.4642]
[1717105262787,2.66375,3754.1,3753.6,2.4642]
[1717105263141,2.66355,3754.4,3753.6,3.78633922]
[1717105263378,2.66355,3754.4,3753.6,4.48401135]
[1717105263887,0.06846778,3754.3,3753.6,4.48401135]
[1717105264193,2.66355,3754.4,3753.6,4.48401135]
[1717105266956,3.55555,3754.4,3753.6,4.48401135]
[1717105267271,0.06615021,3754.3,3753.6,4.48401135]
[1717105271144,3.55555,3754.4,3753.6,4.48401135]
[1717105272548,0.06603399,3754.3,3753.6,4.48401135]
[1717105273180,3.55555,3754.4,3753.6,4.48401135]
[1717105283002,0.892,3754.2,3753.6,4.48401135]
[1717105283202,0.892,3754.2,3753.6,3.78633922]
[1717105283623,2.809,3755.2,3753.8,2.21413922]
[1717105283624,0.06437463,3754.1,3753.8,2.21413922]
[1717105283829,0.06437463,3754.1,3754.0,0.892]
[1717105283994,3.55503,3755.2,3754.3,2.66356]
[1717105284184,3.55503,3755.2,3754.5,2.2597]
[1717105284405,0.06055872,3755.1,3754.5,3.58183922]
[1717105284988,0.06055872,3755.1,3754.6,1.32213922]
[1717105285304,0.06055872,3755.1,3754.6,1.94667914]
[1717105286135,0.06055872,3755.1,3754.7,2.3317]
[1717105286336,0.06055872,3755.1,3754.8,1.32213922]
[1717105286503,0.892,3755.4,3754.8,1.32213922]
[1717105286758,2.66275,3755.6,3754.8,1.32213922]
[1717105286759,3.55475,3755.6,3754.8,1.32213922]
[1717105286939,3.55475,3755.6,3754.9,0.72092192]
[1717105287147,0.06105889,3755.5,3755.0,3.65383922]
[1717105289750,0.892,3755.9,3755.0,3.65383922]
[1717105289952,0.05956739,3755.8,3755.0,3.65383922]
[1717105290166,0.05956739,3755.8,3755.0,4.54583922]
[1717105290381,1.1031528,3756.0,3755.1,0.731354]
[1717105290682,1.1031528,3756.0,3755.2,1.32213922]
[1717105291054,0.05943783,3755.9,3755.2,1.32213922]
[1717105301284,2.66254,3755.8,3755.2,1.32213922]
[1717105301501,2.72166461,3755.8,3755.2,1.32213922]
[1717105301750,2.72166461,3755.8,3755.3,0.52771932]
[1717105301948,2.72166461,3755.8,3755.4,1.32213922]
[1717105306426,2.72166461,3755.8,3755.4,3.67293922]
[1717105315672,2.66254,3755.8,3755.4,3.67293922]
[1717105318515,2.66254,3755.8,3755.5,2.4093]
[1717105318712,2.66254,3755.8,3755.6,1.32213922]
[1717105319508,0.0586773,3755.7,3755.6,1.32213922]
[1717105319676,2.66254,3755.8,3755.6,1.32213922]
[1717105323304,0.0586773,3755.7,3755.6,1.32213922]
[1717105323466,2.66254,3755.8,3755.6,1.32213922]
[1717105323861,2.66275,3755.6,3754.7,2.2737]
[1717105324160,0.892,3755.5,3754.8,1.32213922]
[1717105324403,0.95060943,3755.5,3754.8,1.32213922]
[1717105327200,2.3142,3755.3,3754.8,1.32213922]
[1717105327519,0.05833438,3755.2,3754.8,1.32213922]
[1717105332187,0.892,3755.1,3754.3,5.66359]
[1717105332379,0.892,3755.1,3754.4,2.21211822]
[1717105332577,0.05835609,3755.0,3754.4,2.21211822]
[1717105335838,0.892,3754.9,3754.4,1.32213922]
[1717105336344,0.05821603,3754.8,3754.4,1.32213922]
[1717105336895,2.3685,3754.7,3754.4,1.32213922]
[1717105337092,2.42669848,3754.7,3754.4,1.32213922]
[1717105340601,0.05819848,3754.7,3754.4,1.32213922]
[1717105340897,3.55517,3755.0,3754.4,1.32213922]
[1717105341097,0.05811146,3754.6,3754.4,1.32213922]